fUST/lending_fUST_20241224
["ID","MTS","AMOUNT","RATE_DAILY","PERIOD"]
[346429189,1734969631343,412.22,0.000191,60]
[346429190,1734969669181,-2539.2912783,0.00011375,2]
[346429191,1734969669208,-576.95393819,0.00011595,2]
[346429192,1734969669233,-300.0,0.00011695,2]
[346429193,1734969669259,-300.0,0.00011813,2]
[346429194,1734969669289,-14079.8529077,0.00011814,2]
[346429195,1734969669315,-469.089,0.0001201,2]
[346429196,1734969669339,-152.0,0.00012162,2]
[346429197,1734969669367,-152.0,0.00012162,2]
[346429198,1734969669392,-276.43,0.00012162,2]
[346429199,1734969669417,-666.0,0.00012537,2]
[346429200,1734969669444,-3661.97651037,0.00012537,2]
[346429201,1734969669469,-9804.16083062,0.00012578,2]
[346429202,1734969669496,-429.59846928,0.00012599,2]
[346429203,1734969669673,-56149.19653359,0.000126,2]
[346429204,1734969669704,-352.2050668,0.000126,2]
[346429205,1734969669734,-306.0,0.000126,2]
[346429206,1734969669757,-253.49357753,0.00012636,2]
[346429207,1734969669784,-109531.75188762,0.00012637,2]
[346429208,1734969681821,412.22,0.0001001,2]
[346429211,1734969958420,-1417.24533997,0.000225,120]
[346429212,1734969958446,-350.0,0.00023,120]
[346429213,1734969958472,-1630.85768169,0.00024,120]
[346429214,1734969958495,-350.0,0.00024,120]
[346429215,1734969958525,-2220.49697834,0.00025,120]
[346429255,1734970232299,-449.876,0.0001201,2]
[346429256,1734970232309,-133.30065844,0.00012559,2]
[346429257,1734970232320,-166.69934156,0.00012559,2]
[346429258,1734970232330,-300.0,0.00012559,2]
[346429259,1734970232339,-534.0,0.0001256,2]
[346429260,1734970232349,-2128.0,0.0001256,2]
[346429261,1734970232358,-2359.0,0.0001256,2]
[346429262,1734970232369,-680.5857677,0.000126,2]
[346429263,1734970232454,-54014.52564862,0.000126,2]
[346429272,1734970238128,-663.3424107,0.000126,2]
[346429319,1734970239139,-20123.82303316,0.000126,2]
[346429383,1734970240201,-2852.06551988,0.000126,2]
[346429671,1734970243308,-7980.63837753,0.000126,2]
[346429672,1734970243320,-442.71028171,0.000126,2]
[346429677,1734970243365,-7819.6006,0.000126,2]
[346429708,1734970246135,571.993022,0.00022,120]
[346429709,1734970246154,-7180.9914756,0.000126,2]
[346429710,1734970246163,-449855.45017425,0.00012637,2]
[346429711,1734970246175,-1380.43,0.00012637,2]
[346429721,1734970246424,428.29582,0.00022,120]
[346429726,1734970246744,321.621,0.00022,120]
[346429769,1734970247277,961.5,0.00022,120]
[346429813,1734971118206,250.0,0.00010369,2]
[346429814,1734971177602,409.0969233,0.00010969,2]
[346429815,1734971192549,409.0969233,0.00010969,2]
[346429816,1734971207498,409.0969233,0.00010969,2]
[346429822,1734971345092,-600.0,0.00011192,2]
[346429823,1734971345112,-1457.57403703,0.00011273,2]
[346429824,1734971345132,-300.0,0.00011306,2]
[346429825,1734971345152,-300.0,0.00011306,2]
[346429826,1734971345175,-74158.4540846,0.00011307,2]
[346429827,1734971345206,-719525.8059154,0.00011307,2]
[346429828,1734971345227,-506.46313488,0.00011373,2]
[346429829,1734971345411,-274.16782647,0.00011373,2]
[346429830,1734971349096,-225.83217353,0.00011373,2]
[346429831,1734971349116,-500.0,0.00011373,2]
[346429832,1734971349136,-500.0,0.00011373,2]
[346429833,1734971349155,-248.84377897,0.00011373,2]
[346429834,1734971349175,-177.24404784,0.00011373,2]
[346429835,1734971349195,-262.94930725,0.00011373,2]
[346429836,1734971349215,-273.73494059,0.00011373,2]
[346429837,1734971352090,-490.0,0.00011259,2]
[346429843,1734971356104,-588.0,0.00011259,2]
[346429844,1734971363107,-469.78478723,0.00011259,2]
[346429845,1734971363128,-226.26505941,0.00011373,2]
[346429846,1734971363149,-219.46013244,0.00011373,2]
[346429847,1734971363169,-353.08590892,0.00011373,2]
[346429848,1734971371113,-93.56174969,0.00011373,2]
[346429849,1734971371136,-310.89834375,0.00011373,2]
[346429850,1734971371158,-67.19047403,0.00011373,2]
[346429882,1734971435017,-300.0,0.00011258,2]
[346429883,1734971435027,-284.5,0.00011372,2]
[346429884,1734971435038,-15.5,0.00011372,2]
[346429885,1734971435047,-500.0,0.00011373,2]
[346429886,1734971435058,-590.9361635,0.00011491,2]
[346429887,1734971435068,-1252.67593,0.00011573,2]
[346429888,1734971435078,-1142.64750978,0.00011671,2]
[346429889,1734971435089,-1013.26550794,0.00011921,2]
[346429890,1734971435099,-1000.0,0.00011921,2]
[346429891,1734971435110,-1000.0,0.00011921,2]
[346429892,1734971435120,-281.36215528,0.00011921,2]
[346429894,1734971435130,-14.42717757,0.00011921,2]
[346429896,1734971435148,-985.57282243,0.00011921,2]
[346429897,1734971435158,-464.987,0.0001201,2]
[346429899,1734971435167,-153.0,0.000121,2]
[346429901,1734971435177,-157.3660874,0.00012141,2]
[346429902,1734971435187,-153.0,0.00012178,2]
[346429903,1734971435196,-7735.10433822,0.0001237,2]
[346429905,1734971435206,-153.0,0.000124,2]
[346429907,1734971435215,-153.0,0.000125,2]
[346429908,1734971435225,-420.0,0.00012509,2]
[346429910,1734971435236,-666.0,0.00012537,2]
[346429912,1734971435246,-150.0,0.0001256,2]
[346429914,1734971435255,-2127.0,0.0001256,2]
[346429916,1734971435264,-534.0,0.0001256,2]
[346429917,1734971435274,-2358.0,0.0001256,2]
[346429919,1734971435283,-203.58719827,0.0001256,2]
[346429921,1734971435293,-293.562,0.0001256,2]
[346429923,1734971435303,-210.63015779,0.00012585,2]
[346429924,1734971435313,-168.99571835,0.00012636,2]
[346429926,1734971435323,-318.10267572,0.00012636,2]
[346429928,1734971435333,-500.0,0.00012636,2]
[346429930,1734971435345,-500.0,0.00012636,2]
[346429932,1734971435355,-610.75,0.00012636,2]
[346429933,1734971435365,-500.0,0.00012636,2]
[346429935,1734971435374,-500.0,0.00012636,2]
[346429937,1734971435384,-500.0,0.00012636,2]
[346429939,1734971435393,-560.25071381,0.00012636,2]
[346429940,1734971435403,-500.0,0.00012636,2]
[346429942,1734971435413,-500.0,0.00012636,2]
[346429944,1734971435423,-500.0,0.00012636,2]
[346429946,1734971435433,-262.95247343,0.00012636,2]
[346429948,1734971435443,-500.0,0.00012636,2]
[346429950,1734971435453,-500.0,0.00012636,2]
[346429951,1734971435463,-500.0,0.00012636,2]
[346429953,1734971435472,-500.995,0.00012636,2]
[346429955,1734971435481,-500.0,0.00012636,2]
[346429957,1734971435490,-500.0,0.00012636,2]
[346429958,1734971435500,-500.0,0.00012636,2]
[346429960,1734971435510,-500.0,0.00012636,2]
[346429962,1734971435520,-500.0,0.00012636,2]
[346429964,1734971435529,-500.0,0.00012636,2]
[346429966,1734971435539,-500.0,0.00012636,2]
[346429967,1734971435548,-500.0,0.00012636,2]
[346429969,1734971435558,-500.0,0.00012636,2]
[346429971,1734971435567,-500.0,0.00012636,2]
[346429973,1734971435577,-543.7275296,0.00012636,2]
[346429975,1734971435589,-500.0,0.00012636,2]
[346429976,1734971435598,-500.0,0.00012636,2]
[346429978,1734971435608,-500.0,0.00012636,2]
[346429980,1734971435618,-500.0,0.00012636,2]
[346429982,1734971435628,-500.0,0.00012636,2]
[346429984,1734971435637,-500.0,0.00012636,2]
[346429985,1734971435647,-500.0,0.00012636,2]
[346429987,1734971435656,-500.0,0.00012636,2]
[346429989,1734971435666,-500.0,0.00012636,2]
[346429991,1734971435675,-500.0,0.00012636,2]
[346429993,1734971435684,-500.0,0.00012636,2]
[346429995,1734971435694,-500.0,0.00012636,2]
[346429996,1734971435703,-500.0,0.00012636,2]
[346429998,1734971435713,-500.0,0.00012636,2]
[346430000,1734971435722,-500.0,0.00012636,2]
[346430001,1734971435732,-500.0,0.00012636,2]
[346430003,1734971435741,-500.0,0.00012636,2]
[346430005,1734971435751,-406332.55262581,0.00012637,2]
[346430007,1734971435764,-169576.56232771,0.00012637,2]
[346430009,1734971435775,-6455.8175913,0.00012637,2]
[346430011,1734971435790,-777.27608247,0.00012637,2]
[346430013,1734971435802,-16134.83994797,0.00012637,2]
[346430015,1734971435814,-11358.22158172,0.00012637,2]
[346430017,1734971435827,-4954.06783679,0.00012637,2]
[346430124,1734971438341,-86282.55585419,0.00012637,2]
[346430125,1734971438451,-18806.21459445,0.00012637,2]
[346430146,1734971440251,-25964.55484317,0.00012637,2]
[346430147,1734971440263,-29182.81912545,0.00012637,2]
[346430148,1734971440328,-29260.01331717,0.00012637,2]
[346430194,1734971443252,-744.09330138,0.00012637,2]
[346430195,1734971443263,-66990.46139454,0.00012637,2]
[346430226,1734971446204,-135452.80489502,0.00012637,2]
[346430227,1734971446216,-1536.82880949,0.00012637,2]
[346430228,1734971446379,-5822.28080256,0.00012637,2]
[346430233,1734971518217,-445.538,0.0001201,2]
[346430234,1734971518237,-445.538,0.00012537,2]
[346430235,1734971518259,-68.924,0.00012537,2]
[346430237,1734971920977,270.318,0.00010935,2]
[346430238,1734972120117,250.0,0.00010646,2]
[346430239,1734972173542,600.0,0.00010934,2]
[346430240,1734972188467,600.0,0.00010934,2]
[346430241,1734972203343,567.72035489,0.00010934,2]
[346430242,1734972296431,600.0,0.00010934,2]
[346430243,1734972304445,196.10403568,0.00010944,2]
[346430244,1734972312459,774.93602762,0.00010946,2]
[346430245,1734972343088,-1147.39100521,0.00011057,2]
[346430246,1734972343110,-263.51563376,0.00011156,2]
[346430247,1734972387941,5176.755206,0.00010723,2]
[346430248,1734972435090,-194.42585979,0.00011058,2]
[346430249,1734972435111,-300.0,0.00011157,2]
[346430250,1734972435132,-300.0,0.00011157,2]
[346430251,1734972435154,-660008.91769242,0.00011158,2]
[346430253,1734972553097,-300.0,0.00011156,2]
[346430254,1734972553118,-300.0,0.00011156,2]
[346430255,1734972553141,-500.0,0.00011157,2]
[346430256,1734972553163,-500.0,0.00011157,2]
[346430257,1734972553184,-456.75,0.00011157,2]
[346430258,1734972553204,-500.0,0.00011157,2]
[346430259,1734972553224,-500.0,0.00011157,2]
[346430260,1734972553244,-500.0,0.00011157,2]
[346430261,1734972553265,-500.0,0.00011157,2]
[346430262,1734972553291,-500.0,0.00011157,2]
[346430263,1734972553313,-500.0,0.00011157,2]
[346430264,1734972553334,-500.0,0.00011157,2]
[346430265,1734972553355,-500.0,0.00011157,2]
[346430266,1734972553377,-500.0,0.00011157,2]
[346430267,1734972553397,-500.0,0.00011157,2]
[346430268,1734972553419,-324.12446279,0.00011157,2]
[346430269,1734972553439,-500.0,0.00011157,2]
[346430270,1734972553461,-500.0,0.00011157,2]
[346430271,1734972553482,-500.0,0.00011157,2]
[346430272,1734972553502,-500.0,0.00011157,2]
[346430273,1734972553524,-500.0,0.00011157,2]
[346430274,1734972553547,-500.0,0.00011157,2]
[346430275,1734972553569,-500.0,0.00011157,2]
[346430276,1734972553591,-500.0,0.00011157,2]
[346430277,1734972553612,-500.0,0.00011157,2]
[346430278,1734972553634,-500.0,0.00011157,2]
[346430279,1734972553656,-500.0,0.00011157,2]
[346430280,1734972553678,-500.0,0.00011157,2]
[346430281,1734972553700,-500.0,0.00011157,2]
[346430282,1734972553722,-500.0,0.00011157,2]
[346430283,1734972553744,-500.0,0.00011157,2]
[346430284,1734972553765,-168.1988,0.00011157,2]
[346430285,1734972553789,-500.0,0.00011157,2]
[346430286,1734972553811,-500.0,0.00011157,2]
[346430287,1734972553831,-500.0,0.00011157,2]
[346430288,1734972553850,-500.0,0.00011157,2]
[346430289,1734972553872,-500.0,0.00011157,2]
[346430290,1734972553892,-500.0,0.00011157,2]
[346430291,1734972553914,-500.0,0.00011157,2]
[346430292,1734972553935,-500.0,0.00011157,2]
[346430293,1734972553955,-500.0,0.00011157,2]
[346430294,1734972553977,-500.0,0.00011157,2]
[346430295,1734972553998,-500.0,0.00011157,2]
[346430296,1734972554021,-500.0,0.00011157,2]
[346430297,1734972554045,-500.0,0.00011157,2]
[346430298,1734972554067,-500.0,0.00011157,2]
[346430299,1734972554094,-500.0,0.00011157,2]
[346430300,1734972554118,-500.0,0.00011157,2]
[346430301,1734972554141,-500.0,0.00011157,2]
[346430302,1734972554163,-256.35985011,0.00011157,2]
[346430303,1734972554185,-500.0,0.00011157,2]
[346430304,1734972554207,-500.0,0.00011157,2]
[346430305,1734972554230,-500.0,0.00011157,2]
[346430306,1734972554252,-500.0,0.00011157,2]
[346430307,1734972554274,-500.0,0.00011157,2]
[346430308,1734972554296,-500.0,0.00011157,2]
[346430309,1734972554321,-111617.5774871,0.00011158,2]
[346430310,1734972554434,-7083.01855176,0.00011158,2]
[346430311,1734972557129,-17572.30356,0.00011158,2]
[346430312,1734972560128,-54811.70270872,0.00011158,2]
[346430313,1734972560148,-161.05840169,0.00011158,2]
[346430314,1734972560170,-444.71342474,0.00011158,2]
[346430315,1734972560189,-500.0,0.00011173,2]
[346430316,1734972560209,-500.0,0.00011173,2]
[346430317,1734972560228,-500.0,0.00011173,2]
[346430318,1734972560250,-5623.07891896,0.00011298,2]
[346430367,1734972632716,-1280.60697764,0.00011298,2]
[346430369,1734972632726,-300.0,0.0001172,2]
[346430371,1734972632736,-893.1411399,0.00011721,2]
[346430373,1734972632745,-852.14094772,0.00011721,2]
[346430375,1734972632754,-1094.83893025,0.00011721,2]
[346430377,1734972632763,-447.934,0.0001201,2]
[346430379,1734972632772,-10571.36585313,0.0001236,2]
[346430381,1734972632781,-500.0,0.000125,2]
[346430383,1734972632790,-352.0,0.000125,2]
[346430385,1734972632800,-500.0,0.0001253,2]
[346430387,1734972632810,-500.0,0.0001253,2]
[346430389,1734972632820,-500.0,0.0001253,2]
[346430391,1734972632829,-164.19,0.0001253,2]
[346430393,1734972632839,-151.538,0.00012537,2]
[346430395,1734972632849,-150.0,0.00012573,2]
[346430397,1734972632858,-394.14415134,0.00012573,2]
[346430399,1734972632870,-139.85584866,0.00012573,2]
[346430401,1734972632879,-2127.0,0.00012573,2]
[346430403,1734972632888,-2358.0,0.00012573,2]
[346430405,1734972632899,-369.06851994,0.00012636,2]
[346430407,1734972632909,-3743.0756314,0.00012637,2]
[346430421,1734972633075,-9980.67301659,0.00012637,2]
[346430460,1734972638406,-480.45827364,0.00012636,2]
[346430461,1734972638416,-458.90172636,0.00012636,2]
[346430462,1734972638461,-41.09827364,0.00012636,2]
[346430463,1734972638470,-500.0,0.00012636,2]
[346430464,1734972638481,-500.0,0.00012636,2]
[346430465,1734972638491,-463.1332,0.00012636,2]
[346430466,1734972638501,-361.81776112,0.00012636,2]
[346430467,1734972638511,-15396.91175148,0.00012637,2]
[346430468,1734972638525,-505.35528582,0.00012637,2]
[346430469,1734972638588,-73422.59372802,0.00012637,2]
[346430470,1734972638600,-44043.48697683,0.00012637,2]
[346430489,1734972642680,-27760.51422725,0.00012637,2]
[346430490,1734972642738,-9310.6,0.00012637,2]
[346430502,1734972643634,-1480681.87805713,0.00012637,2]
[346430503,1734972643690,-3670.0451064,0.00012637,2]
[346430504,1734972643785,-25.889712,0.00012637,2]
[346430539,1734972646729,-5635.14,0.00012637,2]
[346430540,1734972646788,-3655.28067087,0.00012637,2]
[346430542,1734972796332,3000.0,0.000135,30]
[346430543,1734972796871,3000.0,0.0001351,30]
[346430544,1734972797348,3000.0,0.0001352,30]
[346430545,1734972797857,3000.0,0.0001353,30]
[346430546,1734972798488,3000.0,0.0001354,30]
[346430547,1734972798967,3000.0,0.0001355,30]
[346430548,1734972799467,3000.0,0.0001356,30]
[346430549,1734972800120,3000.0,0.0001357,30]
[346430550,1734972800920,3000.0,0.0001358,30]
[346430551,1734972801517,3000.0,0.0001359,30]
[346430552,1734972802045,3000.0,0.000136,30]
[346430553,1734972802626,3000.0,0.0001361,30]
[346430554,1734972803105,3000.0,0.0001362,30]
[346430555,1734972803689,3000.0,0.0001363,30]
[346430556,1734972804253,3441.98245,0.0001364,30]
[346430558,1734973026110,235.2424736,0.00010975,2]
[346430559,1734973097695,609.41313231,0.00010973,2]
[346430560,1734973414650,1763.03675523,9.935e-05,2]
[346430561,1734973530146,-271.18692301,0.00010036,2]
[346430562,1734973628093,-490.0,0.00010035,2]
[346430563,1734973628115,-250.0,0.00010136,2]
[346430564,1734973628137,-1837.3443503,0.00010136,2]
[346430565,1734973628159,-300.0,0.00010194,2]
[346430566,1734973628180,-1418.6856437,0.00010195,2]
[346430567,1734973629088,-7503.2117654,0.00010195,2]
[346430568,1734973629110,-272.086,0.00010935,2]
[346430569,1734973629132,-437.8853358,0.00010959,2]
[346430570,1734973629154,-4620.48919738,0.00011073,2]
[346430571,1734973629180,-152.0,0.00011146,2]
[346430572,1734973629202,-26616.94083335,0.00011156,2]
[346430573,1734973629227,-258.34796396,0.00011157,2]
[346430574,1734973629249,-500.0,0.00011157,2]
[346430575,1734973629270,-500.0,0.00011157,2]
[346430576,1734973629292,-500.0,0.00011157,2]
[346430577,1734973629470,-500.0,0.00011157,2]
[346430578,1734973629498,-500.0,0.00011157,2]
[346430579,1734973629521,-220.83416057,0.00011157,2]
[346430580,1734973629544,-500.0,0.00011157,2]
[346430581,1734973629566,-500.0,0.00011157,2]
[346430582,1734973629588,-500.0,0.00011157,2]
[346430583,1734973629609,-520.25230727,0.00011157,2]
[346430584,1734973629631,-500.0,0.00011157,2]
[346430585,1734973629654,-500.0,0.00011157,2]
[346430586,1734973629679,-500.0,0.00011157,2]
[346430587,1734973629701,-500.0,0.00011157,2]
[346430588,1734973629725,-500.0,0.00011157,2]
[346430589,1734973629748,-500.0,0.00011157,2]
[346430590,1734973629771,-500.0,0.00011157,2]
[346430591,1734973629793,-500.0,0.00011157,2]
[346430592,1734973629815,-500.0,0.00011157,2]
[346430593,1734973629838,-500.0,0.00011157,2]
[346430594,1734973629861,-612.7931924,0.00011157,2]
[346430595,1734973629884,-264.39572475,0.00011157,2]
[346430596,1734973629913,-235.60427525,0.00011157,2]
[346430597,1734973629935,-500.0,0.00011157,2]
[346430598,1734973629956,-500.0,0.00011157,2]
[346430599,1734973629981,-500.0,0.00011157,2]
[346430600,1734973630002,-500.0,0.00011157,2]
[346430601,1734973630026,-500.0,0.00011157,2]
[346430602,1734973630047,-500.0,0.00011157,2]
[346430603,1734973630068,-500.0,0.00011157,2]
[346430604,1734973630091,-500.0,0.00011157,2]
[346430605,1734973630112,-500.0,0.00011157,2]
[346430606,1734973630133,-500.0,0.00011157,2]
[346430607,1734973630154,-500.0,0.00011157,2]
[346430608,1734973630175,-500.0,0.00011157,2]
[346430609,1734973630195,-650.0,0.00011157,2]
[346430610,1734973630216,-500.0,0.00011157,2]
[346430611,1734973630240,-500.0,0.00011157,2]
[346430612,1734973630261,-500.0,0.00011157,2]
[346430613,1734973630283,-507.5,0.00011157,2]
[346430614,1734973630306,-500.0,0.00011157,2]
[346430615,1734973630327,-500.0,0.00011157,2]
[346430616,1734973630348,-500.0,0.00011157,2]
[346430617,1734973630369,-500.0,0.00011157,2]
[346430618,1734973630389,-500.0,0.00011157,2]
[346430619,1734973630413,-500.0,0.00011157,2]
[346430620,1734973630434,-500.0,0.00011157,2]
[346430621,1734973630457,-500.0,0.00011157,2]
[346430622,1734973630479,-407.0414037,0.00011157,2]
[346430623,1734973630499,-180.84357477,0.00011157,2]
[346430624,1734973630519,-500.0,0.00011157,2]
[346430625,1734973630540,-500.0,0.00011157,2]
[346430626,1734973630561,-500.0,0.00011157,2]
[346430627,1734973630584,-500.0,0.00011157,2]
[346430628,1734973630605,-250.0,0.00011157,2]
[346430629,1734973630627,-500.0,0.00011157,2]
[346430630,1734973630650,-1858.49483838,0.00011158,2]
[346430631,1734973748106,-300.0,0.00011157,2]
[346430632,1734973748129,-300.0,0.00011157,2]
[346430633,1734973748153,-122453.62180332,0.00011158,2]
[346430634,1734973750143,-88644.57818685,0.00011158,2]
[346430635,1734973761122,-400565.3743616,0.00011158,2]
[346430636,1734973762080,-5880.0,0.00011158,2]
[346430637,1734973766089,-95755.34059405,0.00011158,2]
[346430739,1734973833294,-706.98673093,0.00011157,2]
[346430741,1734973833304,-300.0,0.00011157,2]
[346430743,1734973833314,-300.0,0.00011157,2]
[346430745,1734973833323,-762.10326907,0.00011158,2]
[346430750,1734973833361,-762.84243801,0.00011158,2]
[346430752,1734973833372,-759.7105542,0.00011158,2]
[346430754,1734973833386,-834.45753381,0.00011158,2]
[346430756,1734973833397,-626.838,0.00011158,2]
[346430759,1734973833409,-6753.10368749,0.00011158,2]
[346430761,1734973833421,-30418.1999999,0.00011158,2]
[346431088,1734973840970,-65552.68773779,0.00011158,2]
[346431089,1734973840982,-30244.12665213,0.00011158,2]
[346431090,1734973841118,-1016.91514378,0.00011158,2]
[346431133,1734973843811,-8781.80885582,0.00011158,2]
[346431140,1734973843870,-360462.40878468,0.00011158,2]
[346431142,1734973843882,-9415.89875,0.00011158,2]
[346431149,1734973843941,-33612.61018503,0.00011158,2]
[346431157,1734973844006,-97497.97537004,0.00011158,2]
[346431179,1734973844316,-5608.80405343,0.00011158,2]
[346431180,1734973844332,-2777.51089025,0.00011158,2]
[346431182,1734973844343,-3362.50000003,0.00011158,2]
[346431382,1734973846965,-2009.9426769,0.00011158,2]
[346431383,1734973847495,-477.336666,0.00011158,2]
[346431621,1734974024426,1150.68471508,0.0002205,120]
[346431652,1734974630848,664.35142265,9.973e-05,2]
[346431654,1734974829095,-1139.6244399,0.00010049,2]
[346431655,1734974829118,-499.3412819,0.00010073,2]
[346431656,1734974832093,-1924.3235673,0.00010073,2]
[346431657,1734974832115,-300.0,0.00010119,2]
[346431658,1734974832137,-300.0,0.00010119,2]
[346431659,1734974832159,-4832.99963526,0.0001012,2]
[346431660,1734974833099,-2268.83153334,0.0001012,2]
[346431661,1734974843089,-1758.77156193,0.0001012,2]
[346431662,1734974892688,588.0,0.00010018,2]
[346431664,1734974961089,-300.0,0.00010119,2]
[346431665,1734974961111,-300.0,0.00010119,2]
[346431666,1734974961133,-15976.67086871,0.0001012,2]
[346431667,1734974973147,-62.72640076,0.0001012,2]
[346431668,1734974973170,-223.84076019,0.00010835,2]
[346431669,1734974973193,-217.669,0.00010935,2]
[346431670,1734974973215,-154.86062544,0.00010958,2]
[346431671,1734974973238,-299.0,0.00011058,2]
[346431672,1734974973259,-511.90341844,0.00011058,2]
[346431673,1734974973284,-244.70279626,0.00011073,2]
[346431674,1734974973307,-420.0,0.0001113,2]
[346431675,1734974973329,-420.0,0.00011131,2]
[346431676,1734974973353,-13876.33819134,0.00011158,2]
[346431702,1734975032003,-770.10730242,0.00011073,2]
[346431731,1734975037751,-2806.02,0.00011073,2]
[346431733,1734975037763,-985.23820748,0.00011073,2]
[346431736,1734975037772,-1246.70409399,0.000111,2]
[346431738,1734975037783,-300.0,0.00011157,2]
[346431740,1734975037794,-300.2035122,0.00011157,2]
[346431741,1734975037803,-186.45806985,0.00011157,2]
[346431743,1734975037812,-500.0,0.00011157,2]
[346431745,1734975037823,-500.0,0.00011157,2]
[346431748,1734975037835,-500.0,0.00011157,2]
[346431750,1734975037844,-500.0,0.00011157,2]
[346431752,1734975037854,-500.0,0.00011157,2]
[346431754,1734975037863,-500.0,0.00011157,2]
[346431756,1734975037873,-500.0,0.00011157,2]
[346431758,1734975037882,-500.0,0.00011157,2]
[346431760,1734975037891,-385.0,0.00011157,2]
[346431761,1734975037901,-500.0,0.00011157,2]
[346431763,1734975037910,-500.0,0.00011157,2]
[346431765,1734975037919,-500.0,0.00011157,2]
[346431767,1734975037929,-500.0,0.00011157,2]
[346431769,1734975037939,-500.0,0.00011157,2]
[346431771,1734975037948,-500.0,0.00011157,2]
[346431773,1734975037958,-500.0,0.00011157,2]
[346431775,1734975037967,-96.16544263,0.00011157,2]
[346431778,1734975037979,-343.83455737,0.00011157,2]
[346431780,1734975037988,-500.0,0.00011157,2]
[346431782,1734975037998,-500.0,0.00011157,2]
[346431784,1734975038007,-500.0,0.00011157,2]
[346431786,1734975038016,-346.03560285,0.00011157,2]
[346431788,1734975038026,-500.0,0.00011157,2]
[346431789,1734975038035,-500.0,0.00011157,2]
[346431791,1734975038044,-500.0,0.00011157,2]
[346431793,1734975038053,-500.0,0.00011157,2]
[346431796,1734975038063,-538.64218735,0.00011157,2]
[346431798,1734975038072,-500.0,0.00011157,2]
[346431799,1734975038084,-500.0,0.00011157,2]
[346431801,1734975038094,-500.0,0.00011157,2]
[346431803,1734975038103,-500.0,0.00011157,2]
[346431805,1734975038113,-500.0,0.00011157,2]
[346431807,1734975038123,-500.0,0.00011157,2]
[346431809,1734975038132,-402.09470372,0.00011157,2]
[346431815,1734975038175,-97.90529628,0.00011157,2]
[346431817,1734975038185,-97.51376616,0.00011157,2]
[346432033,1734975040208,-402.48623384,0.00011157,2]
[346432035,1734975040218,-321.25672622,0.00011157,2]
[346432037,1734975040230,-178.74327378,0.00011157,2]
[346432039,1734975040239,-500.0,0.00011157,2]
[346432041,1734975040248,-200.0,0.00011157,2]
[346432043,1734975040257,-500.0,0.00011157,2]
[346432045,1734975040266,-500.0,0.00011157,2]
[346432047,1734975040275,-1670.24925305,0.00011158,2]
[346432050,1734975040286,-2975.0,0.00011158,2]
[346432617,1734975045931,-817.48035584,0.00011158,2]
[346432619,1734975045948,-24900.22416905,0.00011158,2]
[346434725,1734975122031,-300.0,0.00011156,2]
[346434726,1734975122063,-500.0,0.00011157,2]
[346434727,1734975122095,-487.73699943,0.00011157,2]
[346434728,1734975122151,-12.26300057,0.00011157,2]
[346434729,1734975122183,-500.0,0.00011157,2]
[346434730,1734975122215,-500.0,0.00011157,2]
[346434731,1734975122247,-275.47399886,0.00011157,2]
[346434732,1734975122284,-224.52600114,0.00011157,2]
[346434733,1734975122315,-500.0,0.00011157,2]
[346434734,1734975122347,-500.0,0.00011157,2]
[346434735,1734975122377,-63.21099829,0.00011157,2]
[346434736,1734975122430,-436.78900171,0.00011157,2]
[346434737,1734975122461,-649.04801955,0.00011157,2]
[346434738,1734975122494,-201.89997817,0.00011158,2]